bitfinex/quotes_BTCUSD_20230114
["timestamp","ask_amount","ask_price","bid_price","bid_amount"]
[1673662827480,0.10235396,20907.0,20905.0,0.21945537]
[1673662827732,0.05984396,20907.0,20905.0,0.21945537]
[1673662828727,0.01309,20907.0,20905.0,0.21945537]
[1673662828975,0.01309,20907.0,20906.0,0.321155]
[1673662829237,0.04675396,20910.0,20907.0,0.2]
[1673662829485,0.04675396,20912.0,20908.0,0.40696935]
[1673662829731,0.04675396,20912.0,20909.0,0.98136348]
[1673662829990,0.04675396,20912.0,20907.0,0.478298]
[1673662830235,0.21269332,20909.0,20906.0,0.478313]
[1673662830478,0.04675396,20908.0,20907.0,0.138]
[1673662830723,0.04675396,20908.0,20907.0,0.478308]
[1673662830968,0.04675396,20911.0,20909.0,0.617252]
[1673662831213,0.04675396,20911.0,20910.0,0.22484348]
[1673662831468,0.05331766,20914.0,20911.0,0.956424]
[1673662831708,0.05331766,20914.0,20912.0,0.02484348]
[1673662831956,0.30310612,20914.0,20911.0,0.956424]
[1673662832196,0.19281948,20913.0,20910.0,0.64419865]
[1673662832552,0.3934413,20914.0,20911.0,0.11224507]
[1673662832836,0.04675396,20912.0,20911.0,0.11224507]
[1673662833104,0.02595589,20912.0,20911.0,0.11224507]
[1673662833363,0.02595589,20912.0,20911.0,0.59045407]
[1673662833866,0.2666513,20912.0,20910.0,0.16596365]
[1673662834122,0.28553291,20911.0,20903.0,0.49850616]
[1673662834374,0.28553291,20911.0,20900.0,2.36028522]
[1673662834375,0.83640245,20910.0,20900.0,0.47845]
[1673662834620,0.83640245,20910.0,20901.0,0.0956931]
[1673662834621,0.04675396,20904.0,20901.0,0.0956931]
[1673662834870,0.04675396,20902.0,20901.0,0.0956931]
[1673662835128,0.28553291,20902.0,20896.0,0.83377557]
[1673662835381,0.04675396,20897.0,20896.0,0.14208783]
[1673662835639,0.23747991,20897.0,20896.0,0.25491908]
[1673662835880,0.23747991,20897.0,20895.0,0.14208783]
[1673662836137,0.23747991,20897.0,20895.0,0.34208783]
[1673662836385,0.23747991,20897.0,20894.0,0.83382057]
[1673662836630,0.23747991,20897.0,20894.0,0.14208783]
[1673662836885,0.23847991,20897.0,20896.0,0.138]
[1673662837130,0.04775396,20897.0,20896.0,0.128]
[1673662837374,0.04675396,20897.0,20896.0,0.52118175]
[1673662837617,0.04675396,20898.0,20896.0,1.14180858]
[1673662837860,0.03253622,20898.0,20897.0,0.22294896]
[1673662838118,0.02466973,20897.0,20896.0,0.04398006]
[1673662838400,0.21539568,20897.0,20895.0,0.138]
[1673662838645,0.048053,20896.0,20895.0,0.1518]
[1673662838883,0.29084944,20896.0,20895.0,0.0138]
[1673662839126,0.29084944,20896.0,20891.0,0.14208783]
[1673662839371,0.03253622,20893.0,20890.0,0.35521957]
[1673662839623,0.03253622,20893.0,20890.0,0.14208783]
[1673662839624,0.048053,20892.0,20890.0,0.14208783]
[1673662839862,0.03253622,20893.0,20891.0,0.06393952]
[1673662840116,0.03253622,20896.0,20892.0,1.47699669]
[1673662840358,0.03253622,20896.0,20893.0,0.81159057]
[1673662840359,0.01829657,20896.0,20893.0,0.81159057]
[1673662840597,0.08228173,20906.0,20895.0,0.67720169]
[1673662840849,0.00130173,20906.0,20900.0,0.14252711]
[1673662841085,0.00130173,20906.0,20898.0,2.55539998]
[1673662841086,0.23810571,20902.0,20901.0,0.02484348]
[1673662841329,0.23810571,20902.0,20900.0,0.1491619]
[1673662841330,0.22256016,20902.0,20900.0,0.1491619]
[1673662841577,0.22256016,20902.0,20900.0,0.06276689]
[1673662841578,0.048053,20901.0,20900.0,0.06276689]
[1673662841826,0.2,20903.0,20897.0,0.37573365]
[1673662842061,0.19072595,20902.0,20898.0,0.15496481]
[1673662842318,0.39072595,20903.0,20899.0,0.22506042]
[1673662842582,0.048053,20901.0,20900.0,0.16150604]
[1673662842820,0.478473,20900.0,20896.0,0.20123344]
[1673662843075,0.43877895,20899.0,20897.0,0.139]
[1673662843332,0.08098,20898.0,20897.0,0.139]
[1673662843571,0.048053,20898.0,20897.0,0.18278733]
[1673662843820,0.048053,20898.0,20897.0,0.01827873]
[1673662844061,0.048053,20898.0,20894.0,0.17582]
[1673662844305,0.3989137,20902.0,20894.0,0.85975925]
[1673662844559,0.3989137,20902.0,20896.0,0.62107111]
[1673662844560,0.19072595,20902.0,20896.0,0.62107111]
[1673662844811,0.19072595,20902.0,20897.0,0.02484348]
[1673662845097,0.048053,20901.0,20899.0,0.139]
[1673662845337,0.21816695,20903.0,20897.0,0.1108161]
[1673662845582,0.002,20902.0,20898.0,0.02484348]
[1673662846062,0.26167001,20902.0,20898.0,0.02484348]
[1673662846301,0.048053,20901.0,20898.0,0.05893701]
[1673662846548,0.048053,20901.0,20895.0,0.35631777]
[1673662846549,0.048053,20899.0,20895.0,0.35631777]
[1673662846789,0.478471,20900.0,20895.0,0.1853625]
[1673662846790,0.41968129,20898.0,20895.0,0.1853625]
[1673662847033,0.048053,20897.0,20896.0,0.03278896]
[1673662847594,0.22895534,20898.0,20895.0,0.1853625]
[1673662847841,0.048053,20897.0,20895.0,0.1853625]
[1673662848089,0.70747234,20898.0,20895.0,0.1853625]
[1673662848355,0.6777813,20900.0,20895.0,0.02484348]
[1673662848589,0.6777813,20900.0,20896.0,0.02484348]
[1673662848853,0.6777813,20900.0,20896.0,0.04881382]
[1673662848854,0.30215939,20899.0,20896.0,0.04881382]
[1673662849100,0.30215939,20899.0,20896.0,0.02397034]
[1673662849101,0.35721221,20897.0,20896.0,0.02397034]
[1673662849353,0.090563,20897.0,20896.0,0.02397034]
[1673662849588,0.048053,20897.0,20896.0,0.19597655]
[1673662850330,0.19527657,20898.0,20896.0,0.19597655]
[1673662850586,5.002,20900.0,20897.0,0.03349766]
[1673662850834,0.048053,20899.0,20897.0,0.05834114]
[1673662851064,5.20264395,20900.0,20898.0,0.07089054]
[1673662851327,0.048053,20899.0,20898.0,0.07089054]
[1673662852056,0.050053,20899.0,20898.0,0.07089054]
[1673662852806,0.79824995,20899.0,20893.0,0.14252711]
[1673662853061,0.39072595,20898.0,20894.0,0.03012694]
[1673662853299,0.23377895,20897.0,20894.0,0.03012694]
[1673662853547,0.19072595,20897.0,20894.0,0.03012694]
[1673662853791,0.043053,20896.0,20894.0,0.03012694]
[1673662854023,0.002,20898.0,20896.0,0.12567258]
[1673662854257,0.002,20898.0,20897.0,0.2409743]
[1673662854258,0.04451,20898.0,20897.0,0.2409743]
[1673662854541,0.085563,20898.0,20897.0,0.01256726]
[1673662854780,0.002,20897.0,20894.0,0.134]
[1673662855022,0.002,20897.0,20892.0,0.01454754]
[1673662855023,0.66928595,20896.0,20892.0,0.01454754]
[1673662855270,0.53844129,20895.0,20892.0,0.01454754]
[1673662855523,1.34793795,20894.0,20892.0,0.01454754]
[1673662855768,0.043053,20893.0,20892.0,0.01454754]
[1673662856255,0.521682,20893.0,20892.0,0.01454754]
[1673662856506,0.043053,20893.0,20892.0,0.03118346]
[1673662856987,0.047053,20893.0,20892.0,0.17018346]
[1673662859587,0.2491349,20893.0,20892.0,0.15354754]
[1673662860084,0.047053,20893.0,20892.0,0.15354754]
[1673662860332,0.077053,20893.0,20892.0,0.28623194]
[1673662860588,0.034,20893.0,20892.0,0.36272153]
[1673662860828,0.034,20893.0,20892.0,0.28623194]
[1673662861071,0.00130163,20896.0,20892.0,0.63219954]
[1673662861313,0.00130163,20896.0,20894.0,0.957212]
[1673662861577,0.00130163,20896.0,20895.0,0.16592572]
[1673662861814,0.00100663,20896.0,20893.0,0.478624]
[1673662862076,0.19173258,20896.0,20893.0,0.2254473]
[1673662862323,0.19173258,20896.0,20892.0,0.01454754]
[1673662862324,0.23262567,20895.0,20892.0,0.01454754]
[1673662862563,0.043053,20894.0,20893.0,0.23647884]
[1673662862770,0.00500663,20896.0,20893.0,0.23647884]
[1673662862771,0.39980545,20896.0,20893.0,0.27516093]
[1673662863062,0.19980545,20896.0,20893.0,0.27516093]
[1673662863308,0.043053,20895.0,20893.0,0.27516093]
[1673662863549,0.19980545,20896.0,20893.0,0.27016093]
[1673662863805,0.043053,20895.0,20893.0,0.27016093]
[1673662864019,0.00100663,20896.0,20894.0,0.07633555]
[1673662864293,0.25164333,20896.0,20894.0,0.07633555]
[1673662864526,0.043053,20895.0,20894.0,0.07633555]
[1673662865036,0.28853121,20895.0,20894.0,0.07633555]
[1673662865272,0.28853121,20895.0,20893.0,0.27016093]
[1673662865273,0.043053,20895.0,20893.0,0.27016093]
[1673662865512,0.26053147,20895.0,20894.0,0.144]
[1673662865764,0.30358447,20895.0,20893.0,0.03868209]
[1673662866018,0.26053147,20895.0,20894.0,0.144]
[1673662866266,0.00100663,20896.0,20894.0,0.64744248]
[1673662866753,5.0,20900.0,20895.0,0.99836169]
[1673662867021,2.40320024,20900.0,20897.0,0.957066]
[1673662867277,0.00550844,20900.0,20898.0,0.82320517]
[1673662867521,0.00550844,20900.0,20899.0,2.08450969]
[1673662867779,0.00550844,20900.0,20899.0,2.52650102]
[1673662868034,0.00550844,20900.0,20899.0,1.53798636]
[1673662868280,0.00550844,20900.0,20899.0,0.61750403]
[1673662868999,0.00550844,20900.0,20898.0,0.19947233]
[1673662869000,0.26071335,20900.0,20898.0,0.19947233]
[1673662869540,0.26071335,20900.0,20899.0,0.139]
[1673662869766,0.00550844,20900.0,20899.0,0.139]
[1673662870009,0.00550844,20900.0,20899.0,0.4228104]
[1673662870324,0.00550844,20900.0,20899.0,0.6049704]
[1673662870588,0.00550844,20900.0,20899.0,0.8049704]
[1673662871065,0.00550844,20900.0,20899.0,0.76225022]
[1673662871336,0.00550844,20900.0,20899.0,1.23945191]
[1673662872277,0.00550844,20900.0,20899.0,1.57794291]
[1673662872560,0.00550844,20900.0,20899.0,1.72047002]
[1673662872802,0.00550844,20900.0,20899.0,0.32116]
[1673662873062,0.00550844,20900.0,20897.0,0.83483977]
[1673662873063,0.043053,20899.0,20896.0,0.64064307]
[1673662873317,0.19072595,20898.0,20896.0,0.64064307]
[1673662873562,0.41916917,20898.0,20897.0,0.11192051]
[1673662873821,0.22844322,20898.0,20897.0,0.11192051]
[1673662874076,0.043053,20897.0,20892.0,0.12561608]
[1673662874326,0.19072595,20896.0,20892.0,0.12561608]
[1673662874555,0.23377895,20895.0,20893.0,0.01256161]
[1673662874802,0.243053,20894.0,20892.0,0.01454754]
[1673662875054,0.39072595,20894.0,20892.0,0.01454754]
[1673662875338,0.043053,20893.0,20892.0,0.01454754]
[1673662875569,0.04435587,20893.0,20892.0,0.03013398]
[1673662876092,0.23508182,20893.0,20889.0,0.01421774]
[1673662876346,1.7057062,20892.0,20889.0,0.01421774]
[1673662876583,0.478697,20890.0,20889.0,0.01421774]
[1673662876838,0.72175,20890.0,20889.0,0.01421774]
[1673662877332,0.72175,20890.0,20889.0,0.15721774]
[1673662877575,0.72175,20890.0,20885.0,0.01917026]
[1673662877576,1.48969194,20890.0,20885.0,0.01917026]
[1673662877820,0.08098,20887.0,20885.0,7.026e-05]
[1673662878060,0.957648,20885.0,20881.0,0.00359181]
[1673662878316,1.12779988,20884.0,20880.0,0.15546469]
[1673662878565,1.436787,20880.0,20871.0,0.21441092]
[1673662878811,0.957946,20878.0,20870.0,0.42300092]
[1673662879048,0.19072595,20877.0,20876.0,0.07865318]
[1673662879284,0.23377895,20877.0,20876.0,0.07865318]
[1673662879531,0.043053,20877.0,20876.0,0.07365318]
[1673662879770,0.043053,20877.0,20874.0,0.019172]
[1673662879771,0.2,20877.0,20874.0,0.0738861]
[1673662880041,0.31475895,20876.0,20874.0,0.019172]
[1673662880280,0.31475895,20876.0,20874.0,0.014172]
[1673662880281,0.479041,20875.0,20874.0,0.014172]
[1673662880527,0.479041,20875.0,20866.0,0.0566817]
[1673662880528,0.958252,20872.0,20866.0,0.0566817]
[1673662880769,0.6527876,20871.0,20865.0,0.20583]
[1673662881026,0.60817838,20870.0,20869.0,0.01456336]
[1673662881260,0.23770897,20870.0,20869.0,0.01456336]
[1673662881502,0.31868897,20870.0,20869.0,0.01456336]
[1673662881757,0.913086,20870.0,20869.0,0.01456336]
[1673662881998,0.51868897,20870.0,20869.0,0.01456336]
[1673662882266,0.43770897,20870.0,20869.0,0.01456336]
[1673662882503,0.25021761,20875.0,20869.0,0.03940684]
[1673662882846,0.065,20870.0,20869.0,0.02524807]
[1673662883100,0.22276182,20873.0,20869.0,0.02524807]
[1673662883338,0.41247502,20876.0,20869.0,0.06059336]
[1673662883603,0.19478858,20874.0,20870.0,0.35206282]
[1673662883848,0.19072595,20876.0,20871.0,0.32116]
[1673662884073,0.24924843,20875.0,20872.0,0.02484348]
[1673662884314,0.001,20873.0,20872.0,0.02484348]
[1673662884552,0.24924843,20875.0,20871.0,0.02192644]
[1673662884800,0.001,20874.0,20871.0,0.09601489]
[1673662885053,0.001,20874.0,20873.0,0.958174]
[1673662885289,0.22267978,20884.0,20874.0,0.2]
[1673662885545,0.24387452,20883.0,20877.0,0.15]
[1673662885787,0.20807676,20882.0,20878.0,0.34591348]
[1673662886046,0.2,20885.0,20877.0,0.478978]
[1673662886047,0.2458322,20880.0,20879.0,0.24994115]
[1673662886298,0.2403364,20877.0,20874.0,0.429058]
[1673662886541,0.19072595,20876.0,20873.0,0.479076]
[1673662886785,0.19072595,20876.0,20874.0,0.0707101]
[1673662886786,0.19072595,20875.0,20874.0,0.0707101]
[1673662887026,0.19072595,20875.0,20872.0,0.02582611]
[1673662887270,0.26392295,20874.0,20872.0,0.02582611]
[1673662887530,0.19072595,20874.0,20872.0,0.02582611]
[1673662887785,0.19072595,20874.0,20870.0,0.00605934]
[1673662888044,0.26392295,20873.0,20870.0,0.00605934]
[1673662888311,0.073197,20872.0,20870.0,0.00605934]
[1673662888546,0.2,20871.0,20870.0,0.00605934]
[1673662888814,0.273197,20871.0,20870.0,0.00605934]
[1673662889070,0.47170595,20871.0,20869.0,0.00456336]
[1673662889356,0.073197,20870.0,20869.0,0.00456336]
[1673662890589,0.073197,20870.0,20869.0,0.13132336]
[1673662891574,0.27317388,20870.0,20869.0,0.13132336]
[1673662891815,0.27317388,20870.0,20869.0,0.01505004]
[1673662892077,0.20982164,20872.0,20868.0,0.02293894]
[1673662892317,0.42494716,20871.0,20863.0,0.36685151]
[1673662892558,0.20972595,20870.0,20869.0,0.05803]
[1673662892775,0.2,20875.0,20869.0,0.05803]
[1673662892776,0.41801722,20876.0,20870.0,0.2]
[1673662893046,0.21380304,20874.0,20872.0,1.279403]
[1673662893293,0.21380304,20874.0,20873.0,0.142324]
[1673662893532,0.2,20879.0,20875.0,0.2]
[1673662893778,0.41793262,20884.0,20877.0,0.478986]
[1673662894033,0.21792467,20879.0,20878.0,0.321083]
[1673662894274,0.97771662,20886.0,20878.0,0.321083]
[1673662894275,0.41793262,20884.0,20878.0,0.321083]
[1673662894535,0.19767512,20883.0,20882.0,0.05703]
[1673662894776,0.19767512,20883.0,20882.0,0.321238]
[1673662895031,0.08098,20884.0,20879.0,0.1279045]
[1673662895298,0.08098,20884.0,20874.0,1.54715344]
[1673662895299,0.27170595,20883.0,20874.0,0.479056]
[1673662895538,1.28756057,20882.0,20875.0,0.32317654]
[1673662895779,0.68963857,20881.0,20875.0,0.19669]
[1673662896029,0.26392295,20880.0,20873.0,0.1100544]
[1673662896276,0.26392295,20879.0,20873.0,0.1100544]
[1673662896526,0.39072595,20878.0,20873.0,0.1100544]
[1673662896764,0.26392295,20877.0,20869.0,0.1016425]
[1673662897018,0.80865857,20876.0,20875.0,0.14]
[1673662897261,0.2,20875.0,20867.0,0.01917]
[1673662897506,1.68123063,20874.0,20867.0,0.03390312]
[1673662897776,0.68116763,20873.0,20868.0,0.14669429]
[1673662898017,0.68116763,20873.0,20867.0,0.04171505]
[1673662898018,0.26392295,20872.0,20869.0,0.18155338]
[1673662898269,0.19072595,20873.0,20869.0,0.18155338]
[1673662898507,0.2,20872.0,20869.0,0.18155338]
[1673662898747,0.41724468,20873.0,20870.0,0.01815534]
[1673662899004,0.00130171,20883.0,20872.0,0.78843969]
[1673662899248,0.26678943,20882.0,20875.0,0.142244]
[1673662899490,0.26678943,20882.0,20877.0,0.957986]
[1673662899751,0.00130171,20883.0,20878.0,0.5664287]
[1673662900005,0.00130171,20883.0,20879.0,1.269002]
[1673662900258,0.00130171,20883.0,20880.0,0.142205]
[1673662900490,0.00130171,20883.0,20882.0,0.62107]
[1673662900741,0.00130171,20883.0,20882.0,1.09827169]
[1673662901002,0.00130171,20883.0,20882.0,1.27598796]
[1673662901479,0.00130171,20883.0,20882.0,1.47598796]
[1673662901964,0.00130171,20883.0,20882.0,1.61498796]
[1673662902210,0.00130171,20883.0,20882.0,1.60916734]
[1673662902696,0.00130171,20883.0,20882.0,1.10101478]
[1673662902697,0.19202766,20883.0,20882.0,1.10101478]
[1673662902962,0.00130171,20883.0,20882.0,0.93196565]
[1673662903201,0.00130171,20883.0,20882.0,1.07820054]
[1673662903442,0.00130171,20883.0,20882.0,1.13196565]
[1673662903685,0.00136171,20883.0,20882.0,0.99296565]
[1673662903926,0.00136171,20883.0,20882.0,1.13196565]
[1673662904173,0.00136171,20883.0,20882.0,0.99296565]
[1673662904408,0.00136171,20883.0,20882.0,1.13196565]
[1673662904890,0.00136171,20883.0,20882.0,1.60916734]
[1673662905128,0.00136171,20883.0,20882.0,1.47016734]
[1673662905402,0.00136171,20883.0,20882.0,1.60916734]
[1673662906899,0.19208766,20883.0,20882.0,0.93196565]
[1673662907157,0.19208766,20883.0,20882.0,0.61524938]
[1673662907395,0.00136171,20883.0,20882.0,0.75324938]
[1673662907643,0.00136171,20883.0,20882.0,0.61524938]
[1673662907888,0.00236171,20883.0,20882.0,0.95844402]
[1673662908126,0.00136171,20883.0,20882.0,0.82044402]
[1673662908400,0.00236171,20883.0,20882.0,1.1092868]
[1673662908908,0.28772766,20883.0,20882.0,0.138]
[1673662909143,0.089019,20882.0,20878.0,0.14618154]
[1673662909391,0.19072595,20881.0,20878.0,0.14618154]
[1673662909632,0.05939171,20883.0,20877.0,0.478994]
[1673662909633,0.19072595,20880.0,20877.0,0.478994]
[1673662909874,0.19072595,20879.0,20872.0,0.479091]
[1673662910121,0.19072595,20878.0,20872.0,0.48474755]
[1673662910367,0.478931,20880.0,20872.0,0.48474755]
[1673662910368,0.19072595,20877.0,20873.0,0.09638686]
[1673662910640,0.19072595,20877.0,20874.0,0.321227]
[1673662910885,0.478904,20881.0,20873.0,0.57546786]
[1673662911132,0.2167943,20879.0,20874.0,0.65190595]
[1673662911374,0.19072595,20879.0,20876.0,0.95801]
[1673662911614,0.21359948,20879.0,20876.0,0.95801]
[1673662911859,0.21359948,20879.0,20876.0,0.479]
[1673662912123,0.24969133,20878.0,20875.0,0.12273738]
[1673662912400,0.478889,20882.0,20876.0,0.09027758]
[1673662912645,0.68022671,20883.0,20877.0,0.478994]
[1673662912646,0.002,20879.0,20877.0,0.478994]
[1673662913121,0.002,20879.0,20878.0,0.49149491]
[1673662913372,0.18983528,20879.0,20878.0,0.16787775]
[1673662913623,0.20902332,20878.0,20876.0,0.09027758]
[1673662913873,0.089019,20877.0,20876.0,0.09027758]
[1673662914111,0.24057384,20878.0,20876.0,0.09027758]
[1673662914356,0.24257384,20878.0,20877.0,0.06505776]
[1673662914596,0.24057384,20878.0,20877.0,0.38628476]
[1673662914846,0.24257384,20878.0,20877.0,0.38628476]
[1673662915090,0.24057384,20878.0,20877.0,0.06505776]
[1673662915342,0.002,20878.0,20876.0,0.139]
[1673662915589,0.19072595,20878.0,20873.0,0.57546186]
[1673662915824,0.27556421,20878.0,20877.0,0.139]
[1673662916071,0.35089311,20878.0,20877.0,0.1377002]
[1673662916312,0.36595317,20878.0,20877.0,0.1377002]
[1673662916551,0.36595317,20878.0,20877.0,0.15147022]
[1673662917066,0.23632417,20878.0,20877.0,0.01377002]
[1673662917307,0.23832417,20878.0,20877.0,0.01377002]
[1673662917561,0.32534317,20878.0,20874.0,0.93076818]
[1673662917820,0.39272595,20878.0,20877.0,0.14]
[1673662918102,0.291019,20878.0,20877.0,0.14]
[1673662918566,0.23236457,20877.0,20874.0,0.12056946]
[1673662918810,0.19072595,20876.0,20874.0,0.139]
[1673662919056,0.19072595,20876.0,20871.0,0.0160233]
[1673662919057,1.14877195,20876.0,20871.0,0.0160233]
[1673662919305,0.86977595,20875.0,20871.0,0.0160233]
[1673662919545,0.19072595,20875.0,20872.0,0.18976282]
[1673662919786,0.19072595,20875.0,20871.0,0.07952778]
[1673662920030,0.27974495,20874.0,20871.0,0.07952778]
[1673662920272,0.2,20873.0,20871.0,0.0160233]
[1673662920511,0.089019,20872.0,20871.0,0.0860233]
[1673662920722,0.568129,20872.0,20871.0,0.0860233]
[1673662921013,0.089019,20872.0,20871.0,0.0860233]
[1673662921500,0.089019,20872.0,20871.0,0.0160233]
[1673662921501,0.77210171,20872.0,20871.0,0.0160233]
[1673662921766,0.77210171,20872.0,20871.0,0.0860233]
[1673662922270,0.97210171,20872.0,20871.0,0.0860233]
[1673662922511,0.011,20873.0,20871.0,0.11128765]
[1673662922752,0.21900518,20876.0,20872.0,0.321227]
[1673662923014,0.006,20872.0,20871.0,0.76234839]
[1673662923284,0.45549352,20874.0,20871.0,0.34688376]
[1673662923522,0.45549352,20874.0,20871.0,0.1260233]
[1673662923523,0.189659,20872.0,20871.0,0.1260233]
[1673662923772,0.85349495,20872.0,20866.0,0.479245]
[1673662924028,0.07288,20869.0,20867.0,0.0958515]
[1673662924276,0.089019,20869.0,20866.0,0.17450243]
[1673662924513,0.19072595,20869.0,20867.0,0.12872862]
[1673662924756,0.89331322,20871.0,20868.0,0.18856445]
[1673662924985,0.089019,20870.0,20869.0,0.01885644]
[1673662925495,0.568175,20870.0,20866.0,0.11]
[1673662925722,0.568175,20870.0,20864.0,0.15853404]
[1673662925723,0.19072595,20869.0,20864.0,0.15853404]
[1673662925977,1.23817295,20868.0,20866.0,0.11]
[1673662926269,0.679225,20867.0,20864.0,0.12831817]
[1673662926510,0.18777542,20866.0,20864.0,0.12831817]
[1673662926753,0.089019,20865.0,20862.0,0.17522288]
[1673662926993,0.19072595,20865.0,20863.0,0.20148919]
[1673662927245,0.2,20864.0,20863.0,0.20148919]
[1673662927544,0.19072595,20864.0,20862.0,0.0360774]
[1673662927766,0.089019,20863.0,20862.0,0.0360774]
[1673662928267,0.289019,20863.0,20862.0,0.0360774]
[1673662928526,0.768336,20863.0,20862.0,0.0360774]
[1673662928725,0.768336,20863.0,20862.0,0.04317544]
[1673662929011,0.99083265,20863.0,20862.0,0.04317544]
[1673662929260,0.768396,20863.0,20862.0,0.0360774]
[1673662930032,1.247713,20863.0,20862.0,0.0360774]
[1673662930574,1.255713,20863.0,20862.0,0.1280774]
[1673662931061,1.45044162,20863.0,20862.0,0.14437543]
[1673662931798,1.45044162,20863.0,20862.0,0.1280774]
[1673662932040,1.5193211,20863.0,20862.0,0.1280774]
[1673662932542,1.255653,20863.0,20862.0,0.1280774]
[1673662933053,0.2,20862.0,20861.0,0.01683377]
[1673662933271,0.68711744,20862.0,20861.0,0.01683377]
[1673662933554,1.25547644,20862.0,20861.0,0.01683377]
[1673662933801,1.31844069,20862.0,20861.0,0.01683377]
[1673662934088,1.32944069,20862.0,20861.0,0.01683377]
[1673662934336,0.2,20861.0,20860.0,9.18e-06]
[1673662934602,0.479409,20859.0,20844.0,0.14196205]
[1673662934854,0.07288,20857.0,20855.0,0.01705918]
[1673662935083,2.18851569,20856.0,20855.0,0.01705918]
[1673662935332,2.20465469,20856.0,20855.0,0.01705918]
[1673662935584,2.46826064,20856.0,20855.0,9.18e-06]
[1673662935840,1.438584,20854.0,20851.0,0.019191]
[1673662936084,0.07288,20852.0,20851.0,0.019191]
[1673662936331,2.17951764,20852.0,20851.0,9.1e-05]
[1673662936576,1.438881,20850.0,20844.0,0.14196205]
[1673662936820,0.69760679,20849.0,20844.0,0.34857602]
[1673662937082,0.959416,20846.0,20844.0,0.14196205]
[1673662937324,0.27974495,20845.0,20844.0,0.14196205]
[1673662937566,0.2,20848.0,20845.0,0.17104896]
[1673662937798,0.2,20848.0,20846.0,0.0313011]
[1673662938045,0.479627,20850.0,20844.0,0.14196205]
[1673662938289,0.19072595,20850.0,20845.0,0.321227]
[1673662938537,0.489625,20850.0,20844.0,0.17115605]
[1673662938780,0.19072595,20850.0,20845.0,0.06509281]
[1673662939019,0.19072595,20850.0,20846.0,0.001]
[1673662939020,0.092,20848.0,20846.0,0.001]
[1673662939265,0.092,20848.0,20844.0,0.64090105]
[1673662939266,0.92606667,20848.0,20844.0,0.17902913]
[1673662939549,0.679649,20849.0,20845.0,0.21395386]
[1673662939550,0.42547465,20847.0,20845.0,0.21395386]
[1673662939789,0.2,20849.0,20845.0,0.21395386]
[1673662939790,0.679643,20849.0,20845.0,0.21395386]
[1673662940027,0.679643,20849.0,20846.0,0.1627299]
[1673662940268,0.728623,20850.0,20846.0,0.1627299]
[1673662940269,0.9413069,20850.0,20846.0,0.1627299]
[1673662940516,0.679608,20851.0,20846.0,0.04108859]
[1673662940764,0.68241694,20852.0,20846.0,0.03608859]
[1673662941009,0.00129896,20853.0,20848.0,0.127065]
[1673662941258,0.00129896,20853.0,20849.0,0.6806749]
[1673662941493,0.20027216,20858.0,20851.0,0.321227]
[1673662941737,0.20027216,20858.0,20852.0,0.1268948]
[1673662941987,0.27288,20857.0,20850.0,1.0502]
[1673662942241,0.70901393,20861.0,20852.0,0.479559]
[1673662942490,1.561633,20863.0,20853.0,0.321359]
[1673662942491,0.19069556,20860.0,20853.0,0.321359]
[1673662942749,0.91814306,20863.0,20854.0,0.0800918]
[1673662942988,0.014,20858.0,20857.0,0.479453]
[1673662943258,0.20341178,20862.0,20855.0,0.679486]
[1673662943511,0.013,20861.0,20856.0,0.12390938]
[1673662943748,0.19072595,20862.0,20855.0,0.679494]
[1673662944241,6e-05,20862.0,20856.0,0.479471]
[1673662944492,0.19072595,20861.0,20857.0,0.321359]
[1673662944753,0.24374461,20860.0,20857.0,0.1520324]
[1673662945016,0.19072595,20861.0,20855.0,0.519494]
[1673662945259,0.19072595,20860.0,20858.0,0.17364469]
[1673662945511,0.21875448,20861.0,20858.0,0.17364469]
[1673662945784,0.21875448,20861.0,20859.0,0.01736447]
[1673662946026,0.014,20860.0,20859.0,0.01736447]
[1673662946272,0.01306,20862.0,20857.0,0.479452]
[1673662946273,6e-05,20862.0,20857.0,0.479452]
[1673662946538,6e-05,20862.0,20858.0,0.998849]
[1673662946539,0.014,20861.0,20858.0,0.998849]
[1673662946778,0.014,20861.0,20859.0,0.321359]
[1673662947027,0.014,20861.0,20860.0,0.9339548]
[1673662947259,6e-05,20862.0,20861.0,0.321325]
[1673662947504,0.00206,20862.0,20861.0,0.321325]
[1673662947774,6e-05,20862.0,20861.0,0.321325]
[1673662948552,0.69966881,20867.0,20863.0,0.126528]
[1673662948793,4.81337567,20860.0,20859.0,0.479407]
[1673662949037,4.90244967,20860.0,20859.0,0.479407]
[1673662949281,4.81337567,20860.0,20859.0,0.479407]
[1673662949528,4.72376555,20860.0,20859.0,0.6232341]
[1673662949769,4.72376555,20860.0,20859.0,1.41613579]
[1673662950010,1.951281,20860.0,20859.0,1.73749479]
[1673662950253,0.001,20867.0,20862.0,1.438014]
[1673662950496,0.00122344,20869.0,20863.0,0.521287]
[1673662950742,0.00122344,20869.0,20864.0,1.08507]
[1673662950993,0.00122344,20869.0,20866.0,0.479243]
[1673662951235,0.00122344,20869.0,20867.0,0.4372093]
[1673662951480,0.00122344,20869.0,20868.0,0.126353]
[1673662951723,0.00122344,20869.0,20868.0,0.605555]
[1673662952001,0.00122344,20869.0,20868.0,0.805555]
[1673662952501,0.00222344,20869.0,20868.0,0.805555]
[1673662952737,0.00122344,20869.0,20868.0,1.11372233]
[1673662952983,0.42272846,20878.0,20869.0,0.2]
[1673662953292,0.00577298,20876.0,20871.0,0.958237]
[1673662953475,0.00569534,20879.0,20871.0,0.958237]
[1673662953476,0.19072595,20878.0,20873.0,0.126308]
[1673662953716,0.26046798,20878.0,20874.0,0.08054]
[1673662953965,0.2,20877.0,20871.0,0.19233]
[1673662954209,0.19072595,20876.0,20871.0,0.19233]
[1673662954453,0.26357595,20875.0,20868.0,0.30816733]
[1673662954698,0.03961,20869.0,20868.0,0.139]
[1673662954941,0.03961,20869.0,20867.0,0.1158503]
[1673662954942,0.089074,20868.0,20867.0,0.1158503]
[1673662955195,0.27979995,20868.0,20863.0,0.479309]
[1673662955441,0.07285,20866.0,20860.0,0.02430981]
[1673662955694,0.27979995,20865.0,20860.0,0.02430981]
[1673662955933,0.39072595,20864.0,20860.0,0.02430981]
[1673662956181,0.26357595,20863.0,20860.0,0.02430981]
[1673662956436,0.67006595,20862.0,20860.0,0.02430981]
[1673662956693,0.089074,20861.0,20860.0,0.02430981]
[1673662956931,0.289074,20861.0,20860.0,0.02430981]
[1673662957387,0.289074,20861.0,20860.0,0.16230981]
[1673662957661,0.289074,20861.0,20860.0,0.04054079]
[1673662957913,0.289074,20861.0,20857.0,0.01600506]
[1673662957914,0.2,20860.0,20857.0,0.01600506]